[Event "AUT-ch U18-Open 2025"]
[Site "Fuerstenfeld"]
[Date "2025.04.14"]
[Round "3.1"]
[White "Wendl, Philipp"]
[Black "Balint, Peter"]
[Result "0-1"]
[Annotator "RC"]
[ECO "A28"]
[WhiteElo "2268"]
[BlackElo "2366"]
[PlyCount "90"]
[EventDate "2025.04.12"]
[EventType "swiss"]
[EventCountry "AUT"]
[SourceTitle "playchess.com"]
[Source "ChessBase"]
[SourceQuality "1"]
[TimeControl "5400+30"]

1. c4 {[%emt 0:00:04]} e5 {[%emt 0:00:18]} 2. Nc3 {[%emt 0:00:06]} Nf6 {[%emt 0:00:05]} 3. Nf3 {[%emt 0:00:29]} Nc6 {[%emt 0:00:04]} 4. e3 {[%emt 0:00:21]} Bb4 {[%emt 0:00:07]} 5. Qc2 {[%emt 0:00:16]} Bxc3 {[%emt 0:00:06]} 6. Qxc3 {[%emt 0:01:30]} Qe7 {[%emt 0:00:07]} 7. a3 {[%emt 0:02:15]} d5 {[%emt 0:00:07]} 8. d4 {[%emt 0:00:05]} exd4 {[%emt 0:14:49]} 9. Nxd4 {[%emt 0:00:19]} Ne5 {[%emt 0:04:55]} 10. cxd5 {[%emt 0:04:52]} Nxd5 {[%emt 0:00:46]} 11. Qc2 {[%emt 0:04:21]} O-O {[%emt 0:03:12]} 12. Be2 {[%emt 0:05:56]} c5 {[%emt 0:10:17]} 13. Nf3 {[%emt 0:03:12]} b6 {[%emt 0:02:53]} 14. Qe4 {[%emt 0:11:43]} Nxf3+ {[%emt 0:00:29]} 15. Bxf3 {[%emt 0:00:04]} Qxe4 {[%emt 0:00:06]} 16. Bxe4 {[%emt 0:00:03]} Be6 {[%emt 0:00:07]} 17. Bd2 {[%emt 0:01:07]} Rac8 {[%emt 0:04:57]} 18. Bf3 {[%emt 0:04:39]} f5 {[%emt 0:03:02]} 19. O-O {[%emt 0:01:08]} Nf6 {[%emt 0:01:26]} 20. Rfd1 {[%emt 0:02:17]} Bb3 {[%emt 0:00:26]} 21. Rdc1 {[%emt 0:01:23]} Rfd8 {[%emt 0:00:19]} 22. Be1 {[%emt 0:00:42]} Ne4 {[%emt 0:00:46]} 23. Be2 {[%emt 0:01:33]} a5 {[%emt 0:06:05]} 24. h3 {[%emt 0:17:07]} Kf8 {[%emt 0:07:41]} 25. Bd1 {[%emt 0:05:44]} Rd3 {[%emt 0:03:29]} 26. Bc2 {[%emt 0:09:20]} Bxc2 {[%emt 0:00:16]} 27. Rxc2 {[%emt 0:00:01]} a4 {[%emt 0:01:27]} 28. Kf1 {[%emt 0:01:18]} c4 {[%emt 0:01:24]} 29. Ke2 {[%emt 0:01:20]} b5 {[%emt 0:00:38]} 30. f3 {[%emt 0:01:48]} Nf6 {[%emt 0:00:56]} 31. Rd1 {[%emt 0:02:14]} Rxd1 {[%emt 0:01:40]} 32. Kxd1 {[%emt 0:00:04]} Nd5 {[%emt 0:00:04]} 33. Re2 {[%emt 0:01:52]} Rd8 {[%emt 0:01:12]} 34. Kc1 {[%emt 0:02:42]} Re8 {[%emt 0:00:17]} 35. Rd2 {[%emt 0:00:32]} Nxe3 {[%emt 0:01:05]} 36. Rd7 {[%emt 0:00:30]} Re5 {[%emt 0:06:37]} 37. Bb4+ {[%emt 0:01:57]} Kg8 {[%emt 0:00:55]} 38. Rxg7+ {[%emt 0:07:17]} Kxg7 {[%emt 0:00:38]} 39. Bc3 {[%emt 0:00:05]} Kf6 {[%emt 0:00:18]} 40. f4 {[%emt 0:00:04]} Nxg2 {[%emt 0:00:04]} 41. Bxe5+ {[%emt 0:01:28]} Ke6 {[%emt 0:00:06]} 42. Kd2 {[%emt 0:00:07]} Kd5 {[%emt 0:00:03]} 43. Kc3 {[%emt 0:02:38]} Ke4 {[%emt 0:00:22]} 44. Kb4 {[%emt 0:00:20]} Nxf4 {[%emt 0:00:08]} 45. Bc7 {[%emt 0:01:11]} Nd5+ {[%emt 0:00:04]} 0-1

[Event "AUT-ch U18-Open 2025"]
[Site "Fuerstenfeld"]
[Date "2025.04.14"]
[Round "3.2"]
[White "Gruenwald, Simon"]
[Black "Leitgeb, Julian"]
[Result "0-1"]
[Annotator "RC"]
[ECO "B90"]
[WhiteElo "2101"]
[BlackElo "2313"]
[PlyCount "106"]
[EventDate "2025.04.12"]
[EventType "swiss"]
[EventCountry "AUT"]
[SourceTitle "playchess.com"]
[Source "ChessBase"]
[SourceQuality "1"]
[TimeControl "5400+30"]

1. e4 {[%emt 0:01:15]} c5 {[%emt 0:00:13]} 2. Nf3 {[%emt 0:00:02]} d6 {[%emt 0:00:48]} 3. d4 {[%emt 0:00:17]} cxd4 {[%emt 0:00:06]} 4. Nxd4 {[%emt 0:00:03]} Nf6 {[%emt 0:00:13]} 5. Nc3 {[%emt 0:00:01]} a6 {[%emt 0:00:17]} 6. Rg1 {[%emt 0:00:04]} h5 {[%emt 0:00:42]} 7. h3 {[%emt 0:00:02]} g6 {[%emt 0:00:24]} 8. g4 {[%emt 0:02:22]} hxg4 {[%emt 0:03:32]} 9. hxg4 {[%emt 0:00:04]} Bg7 {[%emt 0:00:28]} 10. Be3 {[%emt 0:04:18]} Nc6 {[%emt 0:01:20]} 11. Be2 {[%emt 0:05:51]} Bxg4 {[%emt 0:03:40]} 12. Nxc6 {[%emt 0:04:00]} Bxe2 {[%emt 0:01:40]} 13. Nxd8 {[%emt 0:00:13]} Bxd1 {[%emt 0:00:14]} 14. Nxf7 {[%emt 0:00:04]} Kxf7 {[%emt 0:01:07]} 15. Rxd1 {[%emt 0:00:24]} Rac8 {[%emt 0:00:15]} 16. Bd4 {[%emt 0:06:40]} Rc4 {[%emt 0:12:44]} 17. b3 {[%emt 0:29:24]} Rc6 {[%emt 1:11:17]} 18. Rd3 {[%emt 0:00:02]} Rh4 {[%emt 0:00:00]} 19. f3 {[%emt 0:07:19]} Rh2 {[%emt 0:00:00]} 20. Kd1 {[%emt 0:03:56]} Ng4 {[%emt 0:00:00]} 21. Rxg4 {[%emt 0:02:03]} Bxd4 {[%emt 0:00:00]} 22. Ne2 {[%emt 0:00:16]} Bf6 {[%emt 0:00:00]} 23. a4 {[%emt 0:03:46]} g5 {[%emt 0:00:00]} 24. Rg1 {[%emt 0:04:35]} Rc8 {[%emt 0:00:00]} 25. Rd2 {[%emt 0:02:00]} Rf2 {[%emt 0:00:00]} 26. Rd3 {[%emt 0:02:57]} Rh8 {[%emt 0:00:00]} 27. Ng3 {[%emt 0:00:38]} Be5 {[%emt 0:00:00]} 28. Nh1 {[%emt 0:03:23]} Rfh2 {[%emt 0:00:00]} 29. Ng3 {[%emt 0:00:02]} R8h3 {[%emt 0:00:00]} 30. Nf5 {[%emt 0:01:51]} Rf2 {[%emt 0:00:00]} 31. Rd2 {[%emt 0:03:11]} Rxd2+ {[%emt 0:00:00]} 32. Kxd2 {[%emt 0:00:01]} Bf4+ {[%emt 0:00:00]} 33. Ke2 {[%emt 0:00:22]} Rh2+ {[%emt 0:00:00]} 34. Kd3 {[%emt 0:00:02]} Rd2+ {[%emt 0:00:00]} 35. Kc3 {[%emt 0:00:03]} Rf2 {[%emt 0:00:00]} 36. Nd4 {[%emt 0:02:03]} Kf6 {[%emt 0:00:00]} 37. Rd1 {[%emt 0:00:38]} Be5 {[%emt 0:00:00]} 38. Rd3 {[%emt 0:00:36]} Bxd4+ {[%emt 0:00:00]} 39. Kxd4 {[%emt 0:00:03]} Rxc2 {[%emt 0:00:00]} 40. Rd1 {[%emt 0:02:46]} Rf2 {[%emt 0:00:00]} 41. Rd3 {[%emt 0:00:38]} Rg2 {[%emt 0:00:57]} 42. Rc3 {[%emt 0:00:48]} Rg3 {[%emt 0:00:59]} 43. Rc8 {[%emt 0:01:22]} Kf7 {[%emt 0:00:35]} 44. Rc3 {[%emt 0:00:34]} Kf6 {[%emt 0:01:07]} 45. Rc8 {[%emt 0:00:19]} Kf7 {[%emt 0:02:08]} 46. Rc3 {[%emt 0:01:03]} b5 {[%emt 0:02:33]} 47. axb5 {[%emt 0:00:36]} axb5 {[%emt 0:00:01]} 48. e5 {[%emt 0:00:23]} dxe5+ {[%emt 0:01:32]} 49. Kxe5 {[%emt 0:01:18]} g4 {[%emt 0:00:02]} 50. Rc5 {[%emt 0:00:26]} gxf3 {[%emt 0:00:41]} 51. Ke4 {[%emt 0:00:02]} b4 {[%emt 0:01:30]} 52. Ke3 {[%emt 0:00:29]} f2+ {[%emt 0:00:15]} 53. Kxf2 {[%emt 0:00:10]} Rxb3 {[%emt 0:00:02]} 0-1

[Event "AUT-ch U18-Open 2025"]
[Site "Fuerstenfeld"]
[Date "2025.04.14"]
[Round "3.3"]
[White "Fitz, Jonathan David"]
[Black "Gold, Theodor"]
[Result "0-1"]
[Annotator "RC"]
[ECO "E04"]
[WhiteElo "1918"]
[BlackElo "2066"]
[PlyCount "96"]
[EventDate "2025.04.12"]
[EventType "swiss"]
[EventCountry "AUT"]
[SourceTitle "playchess.com"]
[Source "ChessBase"]
[SourceQuality "1"]
[TimeControl "5400+30"]

1. d4 {[%emt 0:00:03]} Nf6 {[%emt 0:00:07]} 2. c4 {[%emt 0:00:19]} e6 {[%emt 0:00:30]} 3. Nf3 {[%emt 0:00:09]} d5 {[%emt 0:00:05]} 4. g3 {[%emt 0:00:08]} dxc4 {[%emt 0:00:08]} 5. Bg2 {[%emt 0:00:12]} a6 {[%emt 0:00:05]} 6. O-O {[%emt 0:00:09]} Nc6 {[%emt 0:00:04]} 7. e3 {[%emt 0:00:03]} Rb8 {[%emt 0:00:10]} 8. Nfd2 {[%emt 0:00:08]} e5 {[%emt 0:00:06]} 9. Bxc6+ {[%emt 0:00:06]} bxc6 {[%emt 0:00:04]} 10. dxe5 {[%emt 0:00:05]} Ng4 {[%emt 0:00:07]} 11. Nxc4 {[%emt 0:00:31]} Be6 {[%emt 0:00:08]} 12. Nbd2 {[%emt 0:00:58]} Bb4 {[%emt 0:00:06]} 13. b3 {[%emt 0:10:03]} h5 {[%emt 0:00:45]} 14. Nf3 {[%emt 0:09:55]} Qxd1 {[%emt 0:14:54]} 15. Rxd1 {[%emt 0:00:03]} Bxc4 {[%emt 0:00:09]} 16. bxc4 {[%emt 0:00:07]} Bc3 {[%emt 0:00:07]} 17. Ba3 {[%emt 0:00:13]} Bxa1 {[%emt 0:00:08]} 18. Rxa1 {[%emt 0:00:03]} c5 {[%emt 0:34:29]} 19. Bxc5 {[%emt 0:01:31]} Rb2 {[%emt 0:03:53]} 20. e4 {[%emt 0:35:16]} Rc2 {[%emt 0:04:37]} 21. Rb1 {[%emt 0:02:13]} Kd7 {[%emt 0:00:29]} 22. Rb4 {[%emt 0:02:27]} a5 {[%emt 0:14:06]} 23. Ra4 {[%emt 0:05:18]} Rb8 {[%emt 0:00:31]} 24. h3 {[%emt 0:00:28]} Rb1+ {[%emt 0:00:32]} 25. Kg2 {[%emt 0:00:05]} Nxf2 {[%emt 0:00:27]} 26. e6+ {[%emt 0:01:13]} Kc8 {[%emt 0:07:53]} 27. Bxf2 {[%emt 0:03:00]} Rbb2 {[%emt 0:00:19]} 28. e7 {[%emt 0:00:24]} Rxf2+ {[%emt 0:00:12]} 29. Kg1 {[%emt 0:00:04]} Kd7 {[%emt 0:01:08]} 30. Ne5+ {[%emt 0:00:27]} Kxe7 {[%emt 0:00:18]} 31. Nd3 {[%emt 0:00:01]} Rxa2 {[%emt 0:00:35]} 32. Rxa5 {[%emt 0:00:31]} Rg2+ {[%emt 0:00:50]} 33. Kf1 {[%emt 0:00:05]} Rxa5 {[%emt 0:00:05]} 34. Kxg2 {[%emt 0:00:04]} Ra3 {[%emt 0:00:42]} 35. Nf4 {[%emt 0:00:47]} g6 {[%emt 0:00:11]} 36. Nd5+ {[%emt 0:03:10]} Kd8 {[%emt 0:02:08]} 37. Kf2 {[%emt 0:01:26]} h4 {[%emt 0:00:53]} 38. gxh4 {[%emt 0:01:54]} Rxh3 {[%emt 0:00:10]} 39. Ne3 {[%emt 0:00:09]} Rxh4 {[%emt 0:00:13]} 40. Kf3 {[%emt 0:00:50]} Rh3+ {[%emt 0:07:33]} 41. Ke2 {[%emt 0:00:14]} Rxe3+ {[%emt 0:00:06]} 42. Kxe3 {[%emt 0:00:03]} Ke7 {[%emt 0:00:07]} 43. Kd4 {[%emt 0:00:06]} Kd6 {[%emt 0:00:05]} 44. e5+ {[%emt 0:00:30]} Kc6 {[%emt 0:01:53]} 45. Ke4 {[%emt 0:01:01]} Kc5 {[%emt 0:00:07]} 46. Kd3 {[%emt 0:00:05]} g5 {[%emt 0:00:09]} 47. Ke4 {[%emt 0:00:05]} Kxc4 {[%emt 0:00:06]} 48. Kf5 {[%emt 0:00:03]} Kd5 {[%emt 0:00:09]} 0-1

[Event "AUT-ch U18-Open 2025"]
[Site "Fuerstenfeld"]
[Date "2025.04.14"]
[Round "3.4"]
[White "Gschiel, Alexander"]
[Black "Hengl, Philip"]
[Result "1-0"]
[Annotator "RC"]
[ECO "D02"]
[WhiteElo "2317"]
[BlackElo "2205"]
[PlyCount "95"]
[EventDate "2025.04.12"]
[EventType "swiss"]
[EventCountry "AUT"]
[SourceTitle "playchess.com"]
[Source "ChessBase"]
[SourceQuality "1"]
[TimeControl "5400+30"]

1. Nf3 {[%emt 0:00:05]} d5 {[%emt 0:00:45]} 2. g3 {[%emt 0:00:11]} Nd7 {[%emt 0:01:27]} 3. d4 {[%emt 0:00:22]} Nb6 {[%emt 0:00:08]} 4. Bg2 {[%emt 0:00:40]} Bf5 {[%emt 0:00:53]} 5. O-O {[%emt 0:00:43]} c6 {[%emt 0:00:35]} 6. Nbd2 {[%emt 0:00:58]} Nf6 {[%emt 0:02:00]} 7. b3 {[%emt 0:01:15]} e6 {[%emt 0:00:17]} 8. Bb2 {[%emt 0:05:28]} h6 {[%emt 0:01:07]} 9. Ne5 {[%emt 0:02:56]} Nbd7 {[%emt 0:09:29]} 10. c4 {[%emt 0:06:27]} Nxe5 {[%emt 0:00:45]} 11. dxe5 {[%emt 0:00:08]} Ne4 {[%emt 0:00:40]} 12. cxd5 {[%emt 0:13:29]} Nxd2 {[%emt 0:04:15]} 13. Qxd2 {[%emt 0:02:53]} cxd5 {[%emt 0:02:21]} 14. Rfd1 {[%emt 0:09:59]} Be7 {[%emt 0:11:37]} 15. e4 {[%emt 0:01:47]} dxe4 {[%emt 0:00:40]} 16. Qe2 {[%emt 0:06:31]} Qb6 {[%emt 0:00:58]} 17. Bxe4 {[%emt 0:03:04]} Bxe4 {[%emt 0:00:19]} 18. Qxe4 {[%emt 0:00:01]} O-O {[%emt 0:07:58]} 19. Rd7 {[%emt 0:01:52]} Bc5 {[%emt 0:00:29]} 20. Qf3 {[%emt 0:01:32]} Rad8 {[%emt 0:03:42]} 21. Rad1 {[%emt 0:02:59]} Rxd7 {[%emt 0:02:58]} 22. Rxd7 {[%emt 0:00:08]} Qc6 {[%emt 0:00:14]} 23. Qxc6 {[%emt 0:06:22]} bxc6 {[%emt 0:00:02]} 24. Kf1 {[%emt 0:00:40]} Bb6 {[%emt 0:09:27]} 25. Ke2 {[%emt 0:01:23]} Rd8 {[%emt 0:08:31]} 26. Rxd8+ {[%emt 0:00:43]} Bxd8 {[%emt 0:00:01]} 27. Bd4 {[%emt 0:03:41]} a6 {[%emt 0:00:07]} 28. Kd3 {[%emt 0:01:14]} Kf8 {[%emt 0:00:35]} 29. Kc4 {[%emt 0:08:47]} Ke8 {[%emt 0:00:13]} 30. Kc5 {[%emt 0:00:24]} Kd7 {[%emt 0:00:12]} 31. Bc3 {[%emt 0:00:05]} h5 {[%emt 0:02:19]} 32. h3 {[%emt 0:01:41]} Bc7 {[%emt 0:01:17]} 33. g4 {[%emt 0:02:26]} hxg4 {[%emt 0:00:08]} 34. hxg4 {[%emt 0:00:03]} Bd8 {[%emt 0:00:13]} 35. f4 {[%emt 0:02:10]} g6 {[%emt 0:00:54]} 36. Be1 {[%emt 0:02:11]} g5 {[%emt 0:09:55]} 37. fxg5 {[%emt 0:00:22]} Bc7 {[%emt 0:00:39]} 38. Bc3 {[%emt 0:02:00]} Bd8 {[%emt 0:00:28]} 39. a4 {[%emt 0:00:04]} Bc7 {[%emt 0:00:30]} 40. Bd2 {[%emt 0:04:24]} Bxe5 {[%emt 0:06:50]} 41. Kb6 {[%emt 0:00:04]} Bd4+ {[%emt 0:04:58]} 42. Kxa6 {[%emt 0:00:04]} Kc8 {[%emt 0:00:26]} 43. Ka5 {[%emt 0:03:06]} Bc5 {[%emt 0:03:25]} 44. b4 {[%emt 0:01:09]} Bd4 {[%emt 0:00:40]} 45. Ka6 {[%emt 0:01:23]} e5 {[%emt 0:00:51]} 46. b5 {[%emt 0:00:32]} c5 {[%emt 0:01:04]} 47. b6 {[%emt 0:00:20]} c4 {[%emt 0:00:53]} 48. b7+ {[%emt 0:00:15]} 1-0

[Event "AUT-ch U18-Open 2025"]
[Site "Fuerstenfeld"]
[Date "2025.04.14"]
[Round "3.5"]
[White "Noori, Darius"]
[Black "Jetzl, Julian"]
[Result "0-1"]
[Annotator "RC"]
[ECO "B31"]
[WhiteElo "1812"]
[BlackElo "2146"]
[PlyCount "56"]
[EventDate "2025.04.12"]
[EventType "swiss"]
[EventCountry "AUT"]
[SourceTitle "playchess.com"]
[Source "ChessBase"]
[SourceQuality "1"]
[TimeControl "5400+30"]

1. e4 {[%emt 0:00:03]} c5 {[%emt 0:00:08]} 2. Be2 {[%emt 0:00:04]} d6 {[%emt 0:00:31]} 3. f4 {[%emt 0:00:05]} g6 {[%emt 0:01:26]} 4. d3 {[%emt 0:00:23]} Bg7 {[%emt 0:00:17]} 5. c3 {[%emt 0:00:08]} e6 {[%emt 0:02:50]} 6. Nf3 {[%emt 0:00:18]} Ne7 {[%emt 0:00:20]} 7. O-O {[%emt 0:00:22]} O-O {[%emt 0:02:27]} 8. Kh1 {[%emt 0:02:45]} a6 {[%emt 0:01:30]} 9. Be3 {[%emt 0:04:13]} Nd7 {[%emt 0:05:40]} 10. Na3 {[%emt 0:04:58]} b5 {[%emt 0:03:06]} 11. Nc2 {[%emt 0:02:18]} Bb7 {[%emt 0:00:52]} 12. Qe1 {[%emt 0:09:56]} c4 {[%emt 0:11:20]} 13. Rd1 {[%emt 0:05:13]} cxd3 {[%emt 0:07:49]} 14. Bxd3 {[%emt 0:00:27]} Qc7 {[%emt 0:03:02]} 15. Nh4 {[%emt 0:11:32]} Nc5 {[%emt 0:11:51]} 16. Bxc5 {[%emt 0:00:55]} dxc5 {[%emt 0:01:11]} 17. f5 {[%emt 0:03:32]} c4 {[%emt 0:01:36]} 18. f6 {[%emt 0:05:26]} Bxf6 {[%emt 0:02:11]} 19. Rxf6 {[%emt 0:00:08]} cxd3 {[%emt 0:00:09]} 20. Rxd3 {[%emt 0:00:12]} Qe5 {[%emt 0:00:47]} 21. Qf2 {[%emt 0:05:04]} Bxe4 {[%emt 0:03:11]} 22. Rd7 {[%emt 0:03:08]} Nf5 {[%emt 0:01:05]} 23. Nxf5 {[%emt 0:00:37]} Qxf6 {[%emt 0:06:15]} 24. Nh6+ {[%emt 0:02:29]} Kg7 {[%emt 0:32:56]} 25. Qxf6+ {[%emt 0:00:21]} Kxf6 {[%emt 0:00:00]} 26. Ng4+ {[%emt 0:00:35]} Kg5 {[%emt 0:00:00]} 27. Nce3 {[%emt 0:00:55]} Rad8 {[%emt 0:00:00]} 28. Ra7 {[%emt 0:03:15]} Kf4 {[%emt 0:00:00]} 0-1

[Event "AUT-ch U18-Open 2025"]
[Site "Fuerstenfeld"]
[Date "2025.04.14"]
[Round "3.6"]
[White "Hake, Nils"]
[Black "Maier, Tobias"]
[Result "1/2-1/2"]
[Annotator "RC"]
[ECO "C50"]
[WhiteElo "2054"]
[BlackElo "1915"]
[PlyCount "94"]
[EventDate "2025.04.12"]
[EventType "swiss"]
[EventCountry "AUT"]
[SourceTitle "playchess.com"]
[Source "ChessBase"]
[SourceQuality "1"]
[TimeControl "5400+30"]

1. e4 {[%emt 0:00:03]} e5 {[%emt 0:00:03]} 2. Bc4 {[%emt 0:00:04]} Nc6 {[%emt 0:00:34]} 3. d3 {[%emt 0:00:17]} Bc5 {[%emt 0:00:42]} 4. Nc3 {[%emt 0:00:39]} Nf6 {[%emt 0:00:33]} 5. a3 {[%emt 0:00:18]} a6 {[%emt 0:02:53]} 6. Nf3 {[%emt 0:11:05]} d6 {[%emt 0:01:08]} 7. O-O {[%emt 0:03:13]} h6 {[%emt 0:01:08]} 8. Be3 {[%emt 0:02:32]} Ba7 {[%emt 0:01:04]} 9. h3 {[%emt 0:19:39]} Bd7 {[%emt 0:32:22]} 10. Qd2 {[%emt 0:04:31]} Bxe3 {[%emt 0:13:00]} 11. fxe3 {[%emt 0:01:52]} Qe7 {[%emt 0:06:59]} 12. Qf2 {[%emt 0:05:14]} O-O-O {[%emt 0:11:22]} 13. b4 {[%emt 0:01:28]} Nb8 {[%emt 0:05:04]} 14. Nh4 {[%emt 0:09:28]} b6 {[%emt 0:05:54]} 15. Ne2 {[%emt 0:05:59]} Rdf8 {[%emt 0:08:17]} 16. Ng3 {[%emt 0:05:18]} Ne8 {[%emt 0:05:34]} 17. Ne2 {[%emt 0:10:13]} Kb7 {[%emt 0:00:53]} 18. a4 {[%emt 0:00:40]} Qg5 {[%emt 0:01:19]} 19. Kh2 {[%emt 0:00:57]} Qd8 {[%emt 0:00:37]} 20. Bb3 {[%emt 0:01:33]} g5 {[%emt 0:00:30]} 21. Nf5 {[%emt 0:00:27]} g4 {[%emt 0:00:30]} 22. hxg4 {[%emt 0:07:20]} h5 {[%emt 0:00:21]} 23. g5 {[%emt 0:02:03]} Qxg5 {[%emt 0:00:38]} 24. Qh4 {[%emt 0:01:10]} Qg4 {[%emt 0:00:32]} 25. Qxg4 {[%emt 0:00:33]} hxg4+ {[%emt 0:00:02]} 26. Kg3 {[%emt 0:00:07]} Bxf5 {[%emt 0:00:57]} 27. Rxf5 {[%emt 0:00:17]} f6 {[%emt 0:00:32]} 28. Kxg4 {[%emt 0:02:05]} Rh6 {[%emt 0:00:05]} 29. Kg3 {[%emt 0:00:48]} Ng7 {[%emt 0:00:53]} 30. Rf3 {[%emt 0:00:17]} Rfh8 {[%emt 0:00:28]} 31. Kf2 {[%emt 0:00:24]} Nd7 {[%emt 0:00:33]} 32. Ng3 {[%emt 0:00:22]} Nf8 {[%emt 0:00:30]} 33. Bf7 {[%emt 0:01:02]} Nh7 {[%emt 0:00:29]} 34. Nf5 {[%emt 0:01:15]} Nxf5 {[%emt 0:00:27]} 35. Rxf5 {[%emt 0:00:01]} Ng5 {[%emt 0:00:33]} 36. Bb3 {[%emt 0:00:01]} Kc8 {[%emt 0:01:04]} 37. Rf1 {[%emt 0:01:10]} Kd7 {[%emt 0:00:00]} 38. Ke2 {[%emt 0:00:20]} Ke7 {[%emt 0:00:14]} 39. Bc4 {[%emt 0:00:22]} Ra8 {[%emt 0:00:41]} 40. Rb1 {[%emt 0:01:14]} a5 {[%emt 0:00:29]} 41. Bd5 {[%emt 0:01:02]} Ra7 {[%emt 0:00:32]} 42. b5 {[%emt 0:00:14]} Ne6 {[%emt 0:00:31]} 43. Bxe6 {[%emt 0:01:06]} Kxe6 {[%emt 0:00:05]} 44. d4 {[%emt 0:00:37]} Ra8 {[%emt 0:00:36]} 45. Rbf1 {[%emt 0:00:06]} Rg8 {[%emt 0:00:22]} 46. R1f2 {[%emt 0:00:27]} Rg4 {[%emt 0:00:26]} 47. Kd3 {[%emt 0:00:18]} Rgg6 {[%emt 0:00:57]} 1/2-1/2

[Event "AUT-ch U18-Open 2025"]
[Site "Fuerstenfeld"]
[Date "2025.04.14"]
[Round "3.7"]
[White "Loretz, Jonas"]
[Black "Archan, Elikya"]
[Result "1-0"]
[Annotator "RC"]
[ECO "B13"]
[WhiteElo "1869"]
[BlackElo "2048"]
[PlyCount "83"]
[EventDate "2025.04.12"]
[EventType "swiss"]
[EventCountry "AUT"]
[SourceTitle "playchess.com"]
[Source "ChessBase"]
[SourceQuality "1"]
[TimeControl "5400+30"]

1. e4 {[%emt 0:00:07]} c6 {[%emt 0:00:09]} 2. d4 {[%emt 0:00:22]} d5 {[%emt 0:00:06]} 3. exd5 {[%emt 0:00:36]} cxd5 {[%emt 0:00:07]} 4. Bd3 {[%emt 0:00:12]} Nc6 {[%emt 0:00:06]} 5. c3 {[%emt 0:00:20]} Qc7 {[%emt 0:00:07]} 6. Ne2 {[%emt 0:01:27]} e5 {[%emt 0:00:07]} 7. dxe5 {[%emt 0:01:14]} Nxe5 {[%emt 0:00:08]} 8. Bb5+ {[%emt 0:06:49]} Bd7 {[%emt 0:00:06]} 9. Bxd7+ {[%emt 0:01:18]} Qxd7 {[%emt 0:00:02]} 10. O-O {[%emt 0:01:28]} Nf6 {[%emt 0:00:49]} 11. Nf4 {[%emt 0:02:12]} Be7 {[%emt 0:11:14]} 12. Re1 {[%emt 0:04:28]} Nc6 {[%emt 0:00:25]} 13. Nd2 {[%emt 0:03:19]} O-O {[%emt 0:01:00]} 14. Nf3 {[%emt 0:04:02]} Rad8 {[%emt 0:05:18]} 15. Be3 {[%emt 0:03:16]} Bd6 {[%emt 0:04:13]} 16. h3 {[%emt 0:05:42]} Bc7 {[%emt 0:03:44]} 17. Nd3 {[%emt 0:04:51]} b6 {[%emt 0:07:19]} 18. Bg5 {[%emt 0:04:35]} Qf5 {[%emt 0:02:59]} 19. Qc2 {[%emt 0:04:12]} h6 {[%emt 0:15:18]} 20. Be3 {[%emt 0:06:45]} Na5 {[%emt 0:04:17]} 21. Nb4 {[%emt 0:07:15]} Qh5 {[%emt 0:05:09]} 22. Rad1 {[%emt 0:02:59]} Nc4 {[%emt 0:11:26]} 23. Bd4 {[%emt 0:05:07]} Ne4 {[%emt 0:02:34]} 24. Nxd5 {[%emt 0:02:49]} Rxd5 {[%emt 0:10:55]} 25. Rxe4 {[%emt 0:00:43]} Qg6 {[%emt 0:05:54]} 26. Qe2 {[%emt 0:01:31]} Nxb2 {[%emt 0:01:29]} 27. Rg4 {[%emt 0:02:44]} Qxg4 {[%emt 0:02:47]} 28. hxg4 {[%emt 0:00:19]} Nxd1 {[%emt 0:00:03]} 29. Qxd1 {[%emt 0:00:02]} Rfd8 {[%emt 0:00:49]} 30. Qa4 {[%emt 0:02:48]} Bb8 {[%emt 0:00:26]} 31. g3 {[%emt 0:02:19]} Ra5 {[%emt 0:00:14]} 32. Qb3 {[%emt 0:00:27]} Rad5 {[%emt 0:00:17]} 33. Kg2 {[%emt 0:00:47]} Bc7 {[%emt 0:00:17]} 34. Nh4 {[%emt 0:01:20]} Be5 {[%emt 0:00:25]} 35. Nf5 {[%emt 0:02:26]} Kh7 {[%emt 0:00:40]} 36. Bxe5 {[%emt 0:01:33]} Rxe5 {[%emt 0:00:00]} 37. Qxf7 {[%emt 0:00:16]} Rg8 {[%emt 0:00:21]} 38. Ne7 {[%emt 0:00:30]} Ra8 {[%emt 0:00:30]} 39. Qg6+ {[%emt 0:00:12]} Kh8 {[%emt 0:00:02]} 40. Nf5 {[%emt 0:00:15]} Rg8 {[%emt 0:00:23]} 41. Nxh6 {[%emt 0:00:08]} gxh6 {[%emt 0:00:11]} 42. Qxh6# {[%emt 0:00:35]} 1-0

[Event "AUT-ch U18-Open 2025"]
[Site "Fuerstenfeld"]
[Date "2025.04.14"]
[Round "3.8"]
[White "Daemon, Clemens"]
[Black "Mangeng, Lukas"]
[Result "0-1"]
[Annotator "RC"]
[ECO "B04"]
[WhiteElo "1965"]
[BlackElo "1688"]
[PlyCount "90"]
[EventDate "2025.04.12"]
[EventType "swiss"]
[EventCountry "AUT"]
[SourceTitle "playchess.com"]
[Source "ChessBase"]
[SourceQuality "1"]
[TimeControl "5400+30"]

1. e4 {[%emt 0:00:03]} Nf6 {[%emt 0:00:08]} 2. e5 {[%emt 0:02:31]} Nd5 {[%emt 0:00:13]} 3. d4 {[%emt 0:00:15]} d6 {[%emt 0:00:23]} 4. Nf3 {[%emt 0:00:38]} Nc6 {[%emt 0:00:58]} 5. exd6 {[%emt 0:01:16]} cxd6 {[%emt 0:00:20]} 6. c4 {[%emt 0:00:29]} Nb6 {[%emt 0:00:20]} 7. Nc3 {[%emt 0:00:32]} g6 {[%emt 0:00:18]} 8. Be2 {[%emt 0:01:46]} Bg7 {[%emt 0:01:36]} 9. Be3 {[%emt 0:00:59]} O-O {[%emt 0:01:33]} 10. h3 {[%emt 0:03:24]} Bf5 {[%emt 0:09:07]} 11. O-O {[%emt 0:00:55]} d5 {[%emt 0:00:14]} 12. b3 {[%emt 0:09:20]} e5 {[%emt 0:07:11]} 13. c5 {[%emt 0:06:15]} Nc8 {[%emt 0:07:02]} 14. Rc1 {[%emt 0:03:04]} e4 {[%emt 0:03:47]} 15. Ne1 {[%emt 0:01:08]} Be6 {[%emt 0:01:46]} 16. Qd2 {[%emt 0:08:46]} f5 {[%emt 0:03:02]} 17. f4 {[%emt 0:02:27]} N8e7 {[%emt 0:12:48]} 18. Nc2 {[%emt 0:02:42]} Rc8 {[%emt 0:05:24]} 19. b4 {[%emt 0:01:03]} a6 {[%emt 0:01:52]} 20. a4 {[%emt 0:00:49]} Bd7 {[%emt 0:01:23]} 21. Rb1 {[%emt 0:05:18]} Qe8 {[%emt 0:06:49]} 22. b5 {[%emt 0:03:00]} axb5 {[%emt 0:00:02]} 23. axb5 {[%emt 0:00:09]} Na7 {[%emt 0:00:09]} 24. Nb4 {[%emt 0:02:50]} Qf7 {[%emt 0:05:01]} 25. Qa2 {[%emt 0:03:13]} Ra8 {[%emt 0:03:24]} 26. Nbxd5 {[%emt 0:01:26]} Be6 {[%emt 0:00:33]} 27. Nxe7+ {[%emt 0:00:24]} Qxe7 {[%emt 0:00:11]} 28. Bc4 {[%emt 0:02:40]} Nxb5 {[%emt 0:04:02]} 29. Bxe6+ {[%emt 0:01:31]} Kh8 {[%emt 0:00:01]} 30. Nxb5 {[%emt 0:00:40]} Rxa2 {[%emt 0:00:04]} 31. Bxa2 {[%emt 0:00:30]} Rd8 {[%emt 0:00:40]} 32. Nd6 {[%emt 0:01:39]} Rxd6 {[%emt 0:02:46]} 33. cxd6 {[%emt 0:00:15]} Qxd6 {[%emt 0:00:04]} 34. Rfc1 {[%emt 0:08:34]} Bxd4 {[%emt 0:00:58]} 35. Rc8+ {[%emt 0:02:53]} Kg7 {[%emt 0:00:08]} 36. Bxd4+ {[%emt 0:05:22]} Qxd4+ {[%emt 0:00:32]} 37. Kh1 {[%emt 0:00:13]} Qd2 {[%emt 0:00:33]} 38. Rxb7+ {[%emt 0:00:47]} Kh6 {[%emt 0:00:03]} 39. Bg8 {[%emt 0:02:36]} Qxf4 {[%emt 0:00:23]} 40. Rxh7+ {[%emt 0:01:00]} Kg5 {[%emt 0:00:02]} 41. Rc2 {[%emt 0:01:47]} e3 {[%emt 0:04:06]} 42. Bc4 {[%emt 0:00:52]} Qe4 {[%emt 0:03:12]} 43. h4+ {[%emt 0:03:15]} Kf4 {[%emt 0:01:53]} 44. Rc1 {[%emt 0:00:54]} Kg3 {[%emt 0:01:49]} 45. Bf1 {[%emt 0:01:30]} e2 {[%emt 0:01:59]} 0-1